[Event "Titled Tuesday Blitz March 21 Early 2023"]
[White "Reprintsev, Alexander"]
[Black "Savitha Shri B"]
[WhiteFideId "14100541"]
[BlackFideId "35061887"]
[WhiteElo "2229"]
[BlackElo "2191"]
[Result "0-1"]
[Round "05"]
[TimeControl "180+2"]
[Date "2023.03.21"]
[WhiteClock "0:00:06"]
[BlackClock "0:00:06"]

1. e4 {[%clk 0:02:57]}  c5 {[%clk 0:02:59]} 2. b3 {[%clk 0:02:56]}  Nc6 {[%clk 0:03:00]} 3. Bb2 {[%clk 0:02:56]}  e6 {[%clk 0:03:00]} 4. Qe2 {[%clk 0:02:55]}  d5 {[%clk 0:03:01]} 5. exd5 {[%clk 0:02:55]}  Qxd5 {[%clk 0:03:01]} 6. Nc3 {[%clk 0:02:55]}  Qd8 {[%clk 0:03:02]} 7. O-O-O {[%clk 0:02:55]}  Nf6 {[%clk 0:03:03]} 8. Ne4 {[%clk 0:02:49]}  Be7 {[%clk 0:02:54]} 9. Nf3 {[%clk 0:02:48]}  O-O {[%clk 0:02:54]} 10. g4 {[%clk 0:02:48]}  Qa5 {[%clk 0:02:48]} 11. Kb1 {[%clk 0:02:44]}  b6 {[%clk 0:02:10]} 12. g5 {[%clk 0:02:41]}  Nxe4 {[%clk 0:02:09]} 13. Qxe4 {[%clk 0:02:41]}  Bb7 {[%clk 0:02:05]} 14. Bd3 {[%clk 0:02:39]}  g6 {[%clk 0:02:03]} 15. a3 {[%clk 0:02:36]}  Rad8 {[%clk 0:01:52]} 16. h4 {[%clk 0:02:25]}  Rd7 {[%clk 0:01:41]} 17. Qf4 {[%clk 0:02:24]}  Nd4 {[%clk 0:01:40]} 18. Nxd4 {[%clk 0:02:17]}  cxd4 {[%clk 0:01:40]} 19. b4 {[%clk 0:02:16]}  Qa4 {[%clk 0:01:36]} 20. h5 {[%clk 0:02:10]}  Bxh1 {[%clk 0:01:29]} 21. Rxh1 {[%clk 0:02:09]}  Qc6 {[%clk 0:01:06]} 22. Qh2 {[%clk 0:01:58]}  Bd6 {[%clk 0:01:05]} 23. Qh3 {[%clk 0:01:58]}  Be5 {[%clk 0:00:59]} 24. f3 {[%clk 0:01:37]}  a5 {[%clk 0:00:56]} 25. b5 {[%clk 0:01:34]}  Qd6 {[%clk 0:00:48]} 26. Be4 {[%clk 0:01:29]}  d3 {[%clk 0:00:41]} 27. Bxd3 {[%clk 0:01:04]}  Bxb2 {[%clk 0:00:40]} 28. Kxb2 {[%clk 0:01:05]}  Qe5+ {[%clk 0:00:40]} 29. Kb1 {[%clk 0:01:01]}  Rc8 {[%clk 0:00:30]} 30. hxg6 {[%clk 0:01:00]}  fxg6 {[%clk 0:00:31]} 31. f4 {[%clk 0:00:58]}  Qd6 {[%clk 0:00:26]} 32. Bxg6 {[%clk 0:00:55]}  Rcc7 {[%clk 0:00:27]} 33. Be4 {[%clk 0:00:33]}  Qxf4 {[%clk 0:00:18]} 34. Qxe6+ {[%clk 0:00:32]}  Qf7 {[%clk 0:00:17]} 35. Bxh7+ {[%clk 0:00:30]}  Kf8 {[%clk 0:00:14]} 36. Qh6+ {[%clk 0:00:29]}  Qg7 {[%clk 0:00:11]} 37. Rf1+ {[%clk 0:00:28]}  Ke8 {[%clk 0:00:12]} 38. Bg6+ {[%clk 0:00:17]}  Kd8 {[%clk 0:00:12]} 39. Qh2 {[%clk 0:00:13]}  Rc8 {[%clk 0:00:09]} 40. Qf2 {[%clk 0:00:12]}  Rc5 {[%clk 0:00:08]} 41. d4 {[%clk 0:00:12]}  Rxb5+ {[%clk 0:00:08]} 42. Kc1 {[%clk 0:00:12]}  Rxg5 {[%clk 0:00:09]} 43. Bd3 {[%clk 0:00:11]}  Qh6 {[%clk 0:00:09]} 44. Kb2 {[%clk 0:00:10]}  Rg8 {[%clk 0:00:08]} 45. Qf3 {[%clk 0:00:09]}  Kc7 {[%clk 0:00:07]} 46. Rd1 {[%clk 0:00:08]}  Qd6 {[%clk 0:00:08]} 47. Bb5 {[%clk 0:00:08]}  Rf8 {[%clk 0:00:08]} 48. Qc3+ {[%clk 0:00:06]}  Kb8 {[%clk 0:00:07]} 49. Bxd7 {[%clk 0:00:07]}  Qxd7 {[%clk 0:00:08]} 50. d5 {[%clk 0:00:08]}  Rc8 {[%clk 0:00:08]} 51. Qb3 {[%clk 0:00:08]}  Ka7 {[%clk 0:00:07]} 52. c4 {[%clk 0:00:08]}  Qg7+ {[%clk 0:00:08]} 53. Ka2 {[%clk 0:00:06]}  Rf8 {[%clk 0:00:09]} 54. Rd2 {[%clk 0:00:07]}  Rf1 {[%clk 0:00:09]} 55. Rb2 {[%clk 0:00:07]}  Qd4 {[%clk 0:00:08]} 56. a4 {[%clk 0:00:07]}  Re1 {[%clk 0:00:06]} 57. Rc2 {[%clk 0:00:06]}  Ra1# {[%clk 0:00:06]} 0-1


[Site "https://www.chess.com"]

[Event "Titled Tuesday Blitz March 21 Early 2023"]
[White "Golubev, Mikhail"]
[Black "Guzman Moneo, Alberto"]
[WhiteFideId "14100983"]
[BlackFideId "2209616"]
[WhiteElo "2374"]
[BlackElo "2157"]
[Result "0-1"]
[Round "05"]
[TimeControl "180+2"]
[Date "2023.03.21"]
[WhiteClock "0:00:02"]
[BlackClock "0:00:41"]

1. e4 {[%clk 0:03:00]}  c5 {[%clk 0:03:00]} 2. Nf3 {[%clk 0:02:59]}  Nc6 {[%clk 0:03:00]} 3. Nc3 {[%clk 0:02:59]}  g6 {[%clk 0:02:59]} 4. d4 {[%clk 0:02:58]}  cxd4 {[%clk 0:03:00]} 5. Nxd4 {[%clk 0:02:59]}  Bg7 {[%clk 0:03:00]} 6. Be3 {[%clk 0:02:59]}  Nf6 {[%clk 0:03:00]} 7. Bc4 {[%clk 0:02:57]}  O-O {[%clk 0:03:00]} 8. Bb3 {[%clk 0:02:55]}  d6 {[%clk 0:02:58]} 9. f3 {[%clk 0:02:55]}  Qa5 {[%clk 0:02:54]} 10. Qd2 {[%clk 0:02:53]}  Nxd4 {[%clk 0:02:54]} 11. Bxd4 {[%clk 0:02:53]}  Be6 {[%clk 0:02:54]} 12. O-O-O {[%clk 0:02:45]}  b5 {[%clk 0:02:53]} 13. Bxe6 {[%clk 0:02:32]}  fxe6 {[%clk 0:02:53]} 14. Kb1 {[%clk 0:02:32]}  b4 {[%clk 0:02:49]} 15. Ne2 {[%clk 0:02:32]}  e5 {[%clk 0:02:42]} 16. Be3 {[%clk 0:02:27]}  Qb5 {[%clk 0:02:38]} 17. Qd3 {[%clk 0:01:42]}  Qxd3 {[%clk 0:02:37]} 18. cxd3 {[%clk 0:01:34]}  a5 {[%clk 0:02:24]} 19. Rc1 {[%clk 0:01:34]}  Rfc8 {[%clk 0:02:24]} 20. Rxc8+ {[%clk 0:01:32]}  Rxc8 {[%clk 0:02:25]} 21. Rc1 {[%clk 0:01:31]}  Ra8 {[%clk 0:02:00]} 22. Rc7 {[%clk 0:01:25]}  Kf7 {[%clk 0:01:58]} 23. Kc2 {[%clk 0:01:12]}  Ke6 {[%clk 0:01:52]} 24. Kb3 {[%clk 0:01:03]}  Nd7 {[%clk 0:01:40]} 25. Ka4 {[%clk 0:00:49]}  Ra6 {[%clk 0:01:15]} 26. Nc1 {[%clk 0:00:45]}  d5 {[%clk 0:00:58]} 27. exd5+ {[%clk 0:00:25]}  Kd6 {[%clk 0:00:58]} 28. Rc6+ {[%clk 0:00:20]}  Rxc6 {[%clk 0:00:57]} 29. dxc6 {[%clk 0:00:21]}  Kxc6 {[%clk 0:00:58]} 30. Kxa5 {[%clk 0:00:21]}  Nf6 {[%clk 0:00:56]} 31. Bd2 {[%clk 0:00:17]}  Nd5 {[%clk 0:00:55]} 32. Ne2 {[%clk 0:00:13]}  e6 {[%clk 0:00:52]} 33. Ka4 {[%clk 0:00:10]}  Bf8 {[%clk 0:00:52]} 34. Kb3 {[%clk 0:00:10]}  Bc5 {[%clk 0:00:51]} 35. Kc2 {[%clk 0:00:08]}  Kb5 {[%clk 0:00:51]} 36. h3 {[%clk 0:00:07]}  h5 {[%clk 0:00:49]} 37. Bg5 {[%clk 0:00:06]}  Be3 {[%clk 0:00:45]} 38. h4 {[%clk 0:00:04]}  Bxg5 {[%clk 0:00:44]} 39. hxg5 {[%clk 0:00:03]}  Ne3+ {[%clk 0:00:44]} 40. Kd2 {[%clk 0:00:02]}  Nxg2 {[%clk 0:00:45]} 41. d4 {[%clk 0:00:02]}  Nf4 {[%clk 0:00:41]} 0-1


[Site "https://www.chess.com"]

[Event "Titled Tuesday Blitz March 21 Early 2023"]
[White "Rose, Felix"]
[Black "Padmini, Rout"]
[WhiteFideId "5105722"]
[BlackFideId "5029295"]
[WhiteElo "2039"]
[BlackElo "2314"]
[Result "0-1"]
[Round "05"]
[TimeControl "180+2"]
[Date "2023.03.21"]
[WhiteClock "0:00:03"]
[BlackClock "0:01:24"]

1. e4 {[%clk 0:02:59]}  c5 {[%clk 0:02:59]} 2. Nf3 {[%clk 0:02:59]}  e6 {[%clk 0:02:59]} 3. d4 {[%clk 0:02:59]}  cxd4 {[%clk 0:03:00]} 4. Nxd4 {[%clk 0:03:00]}  Nc6 {[%clk 0:03:01]} 5. Nc3 {[%clk 0:03:00]}  Qc7 {[%clk 0:03:01]} 6. Be3 {[%clk 0:03:00]}  a6 {[%clk 0:03:01]} 7. Qf3 {[%clk 0:03:00]}  Nf6 {[%clk 0:03:00]} 8. O-O-O {[%clk 0:02:59]}  Ne5 {[%clk 0:02:59]} 9. Qg3 {[%clk 0:02:59]}  b5 {[%clk 0:02:59]} 10. f4 {[%clk 0:02:58]}  Neg4 {[%clk 0:02:59]} 11. Bg1 {[%clk 0:02:56]}  h5 {[%clk 0:02:56]} 12. e5 {[%clk 0:02:47]}  b4 {[%clk 0:02:50]} 13. exf6 {[%clk 0:02:07]}  bxc3 {[%clk 0:02:49]} 14. fxg7 {[%clk 0:02:07]}  cxb2+ {[%clk 0:02:47]} 15. Kb1 {[%clk 0:02:07]}  Bxg7 {[%clk 0:02:48]} 16. h3 {[%clk 0:01:56]}  e5 {[%clk 0:02:21]} 17. fxe5 {[%clk 0:01:34]}  Bxe5 {[%clk 0:02:20]} 18. Re1 {[%clk 0:01:32]}  Kf8 {[%clk 0:02:17]} 19. Qa3+ {[%clk 0:00:36]}  Bd6 {[%clk 0:02:14]} 20. Qf3 {[%clk 0:00:22]}  Bb7 {[%clk 0:02:11]} 21. Qf5 {[%clk 0:00:17]}  Ne5 {[%clk 0:02:03]} 22. Qf6 {[%clk 0:00:12]}  Ng6 {[%clk 0:01:48]} 23. Nf5 {[%clk 0:00:12]}  Be5 {[%clk 0:01:47]} 24. Rxe5 {[%clk 0:00:03]}  Qxe5 {[%clk 0:01:44]} 25. Bc5+ {[%clk 0:00:04]}  Kg8 {[%clk 0:01:33]} 26. Ne7+ {[%clk 0:00:03]}  Kh7 {[%clk 0:01:24]} 0-1


[Site "https://www.chess.com"]

[Event "Titled Tuesday Blitz March 21 Early 2023"]
[White "lolliNOPE"]
[Black "Castellanos Gomez, Alejandro"]
[BlackFideId "22284141"]
[WhiteElo "2030"]
[BlackElo "2158"]
[Result "1-0"]
[Round "05"]
[TimeControl "180+2"]
[Date "2023.03.21"]
[WhiteClock "0:00:12"]
[BlackClock "0:00:24"]

1. e4 {[%clk 0:02:58]}  e6 {[%clk 0:02:56]} 2. d4 {[%clk 0:02:58]}  d5 {[%clk 0:02:56]} 3. Nc3 {[%clk 0:02:58]}  Bb4 {[%clk 0:02:54]} 4. Ne2 {[%clk 0:02:54]}  dxe4 {[%clk 0:02:53]} 5. a3 {[%clk 0:02:53]}  Be7 {[%clk 0:02:54]} 6. Nxe4 {[%clk 0:02:51]}  Nf6 {[%clk 0:02:54]} 7. N2c3 {[%clk 0:02:47]}  Nbd7 {[%clk 0:02:49]} 8. Bd3 {[%clk 0:02:43]}  O-O {[%clk 0:02:49]} 9. O-O {[%clk 0:02:40]}  Nxe4 {[%clk 0:02:31]} 10. Nxe4 {[%clk 0:02:37]}  Nf6 {[%clk 0:02:32]} 11. c3 {[%clk 0:02:33]}  Bd7 {[%clk 0:02:22]} 12. Nxf6+ {[%clk 0:02:30]}  Bxf6 {[%clk 0:02:18]} 13. Qh5 {[%clk 0:02:27]}  g6 {[%clk 0:02:17]} 14. Qf3 {[%clk 0:02:27]}  Bc6 {[%clk 0:02:15]} 15. Be4 {[%clk 0:02:27]}  Bxe4 {[%clk 0:02:10]} 16. Qxe4 {[%clk 0:02:26]}  c6 {[%clk 0:02:11]} 17. Bh6 {[%clk 0:02:23]}  Re8 {[%clk 0:02:10]} 18. Rfe1 {[%clk 0:02:18]}  Bg5 {[%clk 0:02:05]} 19. Bxg5 {[%clk 0:02:15]}  Qxg5 {[%clk 0:02:06]} 20. Qe5 {[%clk 0:02:14]}  Qe7 {[%clk 0:02:01]} 21. Re3 {[%clk 0:02:07]}  Rad8 {[%clk 0:02:00]} 22. Rae1 {[%clk 0:02:05]}  Rd5 {[%clk 0:01:59]} 23. Qe4 {[%clk 0:02:03]}  Qf6 {[%clk 0:01:53]} 24. Rf3 {[%clk 0:01:55]}  Qg7 {[%clk 0:01:53]} 25. Rfe3 {[%clk 0:01:49]}  Red8 {[%clk 0:01:52]} 26. g3 {[%clk 0:01:42]}  Qf6 {[%clk 0:01:52]} 27. Rf3 {[%clk 0:01:38]}  Qe7 {[%clk 0:01:52]} 28. Rfe3 {[%clk 0:01:38]}  Qc7 {[%clk 0:01:51]} 29. R3e2 {[%clk 0:01:04]}  Rf5 {[%clk 0:01:51]} 30. f4 {[%clk 0:01:00]}  Rfd5 {[%clk 0:01:49]} 31. Qe3 {[%clk 0:00:53]}  h5 {[%clk 0:01:46]} 32. Rd2 {[%clk 0:00:47]}  c5 {[%clk 0:01:38]} 33. Red1 {[%clk 0:00:43]}  Qd7 {[%clk 0:01:38]} 34. b4 {[%clk 0:00:32]}  b6 {[%clk 0:01:37]} 35. bxc5 {[%clk 0:00:26]}  bxc5 {[%clk 0:01:38]} 36. a4 {[%clk 0:00:20]}  Qxa4 {[%clk 0:01:26]} 37. dxc5 {[%clk 0:00:20]}  Qxd1+ {[%clk 0:01:24]} 38. Rxd1 {[%clk 0:00:20]}  Rxd1+ {[%clk 0:01:25]} 39. Kg2 {[%clk 0:00:21]}  Rc8 {[%clk 0:01:05]} 40. Qe5 {[%clk 0:00:19]}  Rd5 {[%clk 0:01:04]} 41. Qf6 {[%clk 0:00:18]}  Rdxc5 {[%clk 0:01:04]} 42. h3 {[%clk 0:00:14]}  Rxc3 {[%clk 0:00:52]} 43. g4 {[%clk 0:00:14]}  hxg4 {[%clk 0:00:46]} 44. hxg4 {[%clk 0:00:15]}  Rc2+ {[%clk 0:00:47]} 45. Kg3 {[%clk 0:00:14]}  R8c3+ {[%clk 0:00:48]} 46. Kh4 {[%clk 0:00:15]}  Rh2+ {[%clk 0:00:48]} 47. Kg5 {[%clk 0:00:15]}  Rc5+ {[%clk 0:00:49]} 48. f5 {[%clk 0:00:16]}  gxf5 {[%clk 0:00:36]} 49. Qd8+ {[%clk 0:00:14]}  Kh7 {[%clk 0:00:36]} 50. Qe7 {[%clk 0:00:14]}  fxg4+ {[%clk 0:00:33]} 51. Qxc5 {[%clk 0:00:13]}  g3 {[%clk 0:00:29]} 52. Qe7 {[%clk 0:00:12]}  Rf2 {[%clk 0:00:25]} 53. Kg4 {[%clk 0:00:11]}  g2 {[%clk 0:00:25]} 54. Qh4+ {[%clk 0:00:11]}  Kg6 {[%clk 0:00:21]} 55. Qxf2 {[%clk 0:00:12]}  f5+ {[%clk 0:00:21]} 56. Kf4 {[%clk 0:00:12]}  e5+ {[%clk 0:00:22]} 57. Kxe5 {[%clk 0:00:12]}  Kg5 {[%clk 0:00:23]} 58. Qxg2+ {[%clk 0:00:12]}  Kh4 {[%clk 0:00:23]} 59. Kf4 {[%clk 0:00:12]}  a5 {[%clk 0:00:24]} 60. Qh2# {[%clk 0:00:12]} 1-0


[Site "https://www.chess.com"]

[Event "Titled Tuesday Blitz March 21 Early 2023"]
[White "Lorparizangeneh, Shahin"]
[Black "Ronka, Erik"]
[WhiteFideId "12521604"]
[BlackFideId "505080"]
[WhiteElo "2526"]
[BlackElo "2264"]
[Result "1-0"]
[Round "05"]
[TimeControl "180+2"]
[Date "2023.03.21"]
[WhiteClock "0:02:14"]
[BlackClock "0:00:33"]

1. e4 {[%clk 0:02:55]}  c5 {[%clk 0:02:59]} 2. Nf3 {[%clk 0:02:53]}  b6 {[%clk 0:02:59]} 3. Bc4 {[%clk 0:02:54]}  Bb7 {[%clk 0:02:58]} 4. Nc3 {[%clk 0:02:52]}  e6 {[%clk 0:02:38]} 5. d4 {[%clk 0:02:45]}  cxd4 {[%clk 0:02:39]} 6. Nxd4 {[%clk 0:02:43]}  Qc7 {[%clk 0:02:34]} 7. Bb3 {[%clk 0:02:42]}  a6 {[%clk 0:02:28]} 8. O-O {[%clk 0:02:42]}  Nf6 {[%clk 0:02:25]} 9. f4 {[%clk 0:02:40]}  Nxe4 {[%clk 0:02:13]} 10. Nxe4 {[%clk 0:02:39]}  Bxe4 {[%clk 0:02:14]} 11. f5 {[%clk 0:02:40]}  e5 {[%clk 0:01:34]} 12. Qh5 {[%clk 0:02:39]}  d5 {[%clk 0:01:30]} 13. Ne6 {[%clk 0:02:28]}  Bc5+ {[%clk 0:01:08]} 14. Kh1 {[%clk 0:02:23]}  Qe7 {[%clk 0:00:49]} 15. Nxg7+ {[%clk 0:02:20]}  Kd7 {[%clk 0:00:48]} 16. f6 {[%clk 0:02:19]}  Qf8 {[%clk 0:00:44]} 17. Bh6 {[%clk 0:02:14]}  Nc6 {[%clk 0:00:39]} 18. Rad1 {[%clk 0:02:14]}  Kc7 {[%clk 0:00:33]} 1-0


[Site "https://www.chess.com"]

[Event "Titled Tuesday Blitz March 21 Early 2023"]
[White "Al-Tarboush, Ward"]
[Black "sebastianmarinp"]
[WhiteFideId "7601450"]
[WhiteElo "2257"]
[BlackElo "2281"]
[Result "1-0"]
[Round "05"]
[TimeControl "180+2"]
[Date "2023.03.21"]
[WhiteClock "0:02:04"]
[BlackClock "0:00:34"]

1. e4 {[%clk 0:03:00]}  e5 {[%clk 0:02:58]} 2. Nf3 {[%clk 0:03:00]}  Nc6 {[%clk 0:02:59]} 3. Bb5 {[%clk 0:03:01]}  a6 {[%clk 0:02:59]} 4. Ba4 {[%clk 0:03:01]}  Nf6 {[%clk 0:02:59]} 5. O-O {[%clk 0:03:01]}  b5 {[%clk 0:02:59]} 6. Bb3 {[%clk 0:03:01]}  Bb7 {[%clk 0:03:00]} 7. d4 {[%clk 0:02:58]}  Nxd4 {[%clk 0:02:47]} 8. Bxf7+ {[%clk 0:02:55]}  Kxf7 {[%clk 0:02:48]} 9. Nxe5+ {[%clk 0:02:56]}  Kg8 {[%clk 0:02:47]} 10. Qxd4 {[%clk 0:02:56]}  c5 {[%clk 0:02:44]} 11. Qd3 {[%clk 0:02:52]}  Bxe4 {[%clk 0:02:36]} 12. Qg3 {[%clk 0:02:52]}  d6 {[%clk 0:02:24]} 13. Nf3 {[%clk 0:02:51]}  Bxc2 {[%clk 0:02:13]} 14. Bg5 {[%clk 0:02:51]}  Bg6 {[%clk 0:01:33]} 15. Nc3 {[%clk 0:02:50]}  Be7 {[%clk 0:01:18]} 16. Rad1 {[%clk 0:02:49]}  Qf8 {[%clk 0:01:17]} 17. Rfe1 {[%clk 0:02:39]}  Rd8 {[%clk 0:01:06]} 18. Rxe7 {[%clk 0:02:36]}  Qxe7 {[%clk 0:01:05]} 19. Nd5 {[%clk 0:02:36]}  Qf7 {[%clk 0:01:01]} 20. Bxf6 {[%clk 0:02:29]}  gxf6 {[%clk 0:01:02]} 21. h4 {[%clk 0:02:29]}  Kf8 {[%clk 0:00:53]} 22. Qf4 {[%clk 0:02:24]}  Rg8 {[%clk 0:00:45]} 23. Nxf6 {[%clk 0:02:08]}  Kg7 {[%clk 0:00:42]} 24. h5 {[%clk 0:02:03]}  Qxf6 {[%clk 0:00:39]} 25. h6+ {[%clk 0:02:04]}  Kf7 {[%clk 0:00:34]} 26. Ng5+ {[%clk 0:02:04]} 1-0


[Site "https://www.chess.com"]

[Event "Titled Tuesday Blitz March 21 Early 2023"]
[White "Orlov, Georgi"]
[Black "Jaivardhan Raj"]
[WhiteFideId "2011271"]
[BlackFideId "25744437"]
[WhiteElo "2610"]
[BlackElo "1772"]
[Result "1-0"]
[Round "05"]
[TimeControl "180+2"]
[Date "2023.03.21"]
[WhiteClock "0:00:20"]
[BlackClock "0:00:14"]

1. e4 {[%clk 0:03:00]}  c5 {[%clk 0:02:02]} 2. Nf3 {[%clk 0:03:00]}  e6 {[%clk 0:02:02]} 3. d4 {[%clk 0:02:59]}  cxd4 {[%clk 0:02:03]} 4. Nxd4 {[%clk 0:02:59]}  Nc6 {[%clk 0:02:03]} 5. Nc3 {[%clk 0:02:59]}  a6 {[%clk 0:02:04]} 6. Be2 {[%clk 0:02:56]}  Qc7 {[%clk 0:02:05]} 7. O-O {[%clk 0:02:56]}  Nf6 {[%clk 0:02:05]} 8. Be3 {[%clk 0:02:55]}  Bb4 {[%clk 0:02:06]} 9. Na4 {[%clk 0:02:53]}  O-O {[%clk 0:02:03]} 10. Nxc6 {[%clk 0:02:31]}  bxc6 {[%clk 0:01:56]} 11. Qd4 {[%clk 0:02:18]}  Be7 {[%clk 0:01:43]} 12. c4 {[%clk 0:02:11]}  c5 {[%clk 0:01:40]} 13. Qd3 {[%clk 0:02:10]}  Bb7 {[%clk 0:01:36]} 14. Nc3 {[%clk 0:02:05]}  Rfd8 {[%clk 0:01:35]} 15. Bf3 {[%clk 0:01:58]}  Bd6 {[%clk 0:01:29]} 16. h3 {[%clk 0:01:53]}  Be5 {[%clk 0:01:28]} 17. Rac1 {[%clk 0:01:47]}  Bxc3 {[%clk 0:01:25]} 18. Rxc3 {[%clk 0:01:36]}  d6 {[%clk 0:01:24]} 19. Bg5 {[%clk 0:01:34]}  Qe7 {[%clk 0:01:21]} 20. Re1 {[%clk 0:01:31]}  h6 {[%clk 0:01:19]} 21. Bh4 {[%clk 0:01:29]}  g5 {[%clk 0:01:17]} 22. Bg3 {[%clk 0:01:28]}  e5 {[%clk 0:01:15]} 23. Bd1 {[%clk 0:01:22]}  Bc6 {[%clk 0:01:12]} 24. h4 {[%clk 0:01:11]}  g4 {[%clk 0:01:03]} 25. f3 {[%clk 0:00:44]}  Qb7 {[%clk 0:00:59]} 26. Qe3 {[%clk 0:00:39]}  Kg7 {[%clk 0:00:57]} 27. Rb3 {[%clk 0:00:38]}  Qd7 {[%clk 0:00:53]} 28. fxg4 {[%clk 0:00:32]}  Nxg4 {[%clk 0:00:53]} 29. Qf3 {[%clk 0:00:26]}  Nf6 {[%clk 0:00:53]} 30. h5 {[%clk 0:00:22]}  Qg4 {[%clk 0:00:50]} 31. Qxg4+ {[%clk 0:00:21]}  Nxg4 {[%clk 0:00:50]} 32. Bxg4 {[%clk 0:00:22]}  Rab8 {[%clk 0:00:48]} 33. Bf5 {[%clk 0:00:21]}  Rxb3 {[%clk 0:00:47]} 34. axb3 {[%clk 0:00:21]}  Rb8 {[%clk 0:00:47]} 35. Re3 {[%clk 0:00:21]}  a5 {[%clk 0:00:43]} 36. Bh4 {[%clk 0:00:21]}  a4 {[%clk 0:00:42]} 37. Rg3+ {[%clk 0:00:22]}  Kf8 {[%clk 0:00:40]} 38. Bh7 {[%clk 0:00:20]}  f5 {[%clk 0:00:14]} 39. Rg8+ {[%clk 0:00:20]} 1-0


[Site "https://www.chess.com"]

[Event "Titled Tuesday Blitz March 21 Early 2023"]
[White "Jovic, Stanoje"]
[Black "HSH1987"]
[WhiteFideId "905020"]
[WhiteElo "2236"]
[BlackElo "2686"]
[Result "1-0"]
[Round "05"]
[TimeControl "180+2"]
[Date "2023.03.21"]
[WhiteClock "0:00:33"]
[BlackClock "0:00:21"]

1. c4 {[%clk 0:03:00]}  Nf6 {[%clk 0:02:59]} 2. g3 {[%clk 0:03:01]}  g6 {[%clk 0:02:58]} 3. Bg2 {[%clk 0:03:01]}  Bg7 {[%clk 0:02:59]} 4. Nc3 {[%clk 0:03:01]}  O-O {[%clk 0:03:00]} 5. Nf3 {[%clk 0:03:01]}  c6 {[%clk 0:02:59]} 6. O-O {[%clk 0:03:00]}  d5 {[%clk 0:02:59]} 7. cxd5 {[%clk 0:03:01]}  cxd5 {[%clk 0:03:00]} 8. d4 {[%clk 0:03:01]}  Nc6 {[%clk 0:03:00]} 9. Ne5 {[%clk 0:03:01]}  e6 {[%clk 0:03:00]} 10. f4 {[%clk 0:02:59]}  Nd7 {[%clk 0:02:53]} 11. e3 {[%clk 0:02:55]}  Nb6 {[%clk 0:02:44]} 12. b3 {[%clk 0:02:54]}  Bd7 {[%clk 0:02:43]} 13. Ba3 {[%clk 0:02:53]}  Re8 {[%clk 0:02:42]} 14. Rc1 {[%clk 0:02:52]}  Rc8 {[%clk 0:02:42]} 15. h4 {[%clk 0:02:49]}  f6 {[%clk 0:02:37]} 16. Nd3 {[%clk 0:02:45]}  Ne7 {[%clk 0:02:25]} 17. g4 {[%clk 0:02:27]}  Bc6 {[%clk 0:01:59]} 18. Nc5 {[%clk 0:02:24]}  Kf7 {[%clk 0:01:58]} 19. h5 {[%clk 0:02:17]}  Nd7 {[%clk 0:01:56]} 20. g5 {[%clk 0:01:50]}  f5 {[%clk 0:01:44]} 21. h6 {[%clk 0:01:50]}  Bf8 {[%clk 0:01:40]} 22. Nd3 {[%clk 0:01:48]}  Qa5 {[%clk 0:01:32]} 23. Bb2 {[%clk 0:01:43]}  Bb5 {[%clk 0:01:30]} 24. Rf2 {[%clk 0:01:26]}  Bxd3 {[%clk 0:01:28]} 25. Qxd3 {[%clk 0:01:25]}  Nc6 {[%clk 0:01:25]} 26. a3 {[%clk 0:01:21]}  Qa6 {[%clk 0:01:22]} 27. Qxa6 {[%clk 0:01:15]}  bxa6 {[%clk 0:01:22]} 28. Nxd5 {[%clk 0:01:12]}  exd5 {[%clk 0:01:06]} 29. Bxd5+ {[%clk 0:01:11]}  Re6 {[%clk 0:01:06]} 30. Rfc2 {[%clk 0:01:07]}  Ndb8 {[%clk 0:01:05]} 31. b4 {[%clk 0:00:58]}  Ke7 {[%clk 0:01:03]} 32. Bxe6 {[%clk 0:00:58]}  Kxe6 {[%clk 0:01:04]} 33. d5+ {[%clk 0:00:52]}  Kxd5 {[%clk 0:01:02]} 34. Be5 {[%clk 0:00:52]}  Re8 {[%clk 0:00:50]} 35. Bxb8 {[%clk 0:00:44]}  Nxb8 {[%clk 0:00:49]} 36. Rc8 {[%clk 0:00:41]}  Rxc8 {[%clk 0:00:45]} 37. Rxc8 {[%clk 0:00:41]}  Nd7 {[%clk 0:00:46]} 38. Rc7 {[%clk 0:00:38]}  Ke6 {[%clk 0:00:26]} 39. Rxa7 {[%clk 0:00:37]}  Bd6 {[%clk 0:00:25]} 40. Rxa6 {[%clk 0:00:37]}  Kd5 {[%clk 0:00:25]} 41. Ra7 {[%clk 0:00:35]}  Kc6 {[%clk 0:00:21]} 42. b5+ {[%clk 0:00:33]} 1-0


[Site "https://www.chess.com"]

[Event "Titled Tuesday Blitz March 21 Early 2023"]
[White "ArtemDyachuk"]
[Black "Shuvalov, Evgenij"]
[BlackFideId "4187237"]
[WhiteElo "2369"]
[BlackElo "2080"]
[Result "1-0"]
[Round "05"]
[TimeControl "180+2"]
[Date "2023.03.21"]
[WhiteClock "0:00:05"]
[BlackClock "0:00:14"]

1. Nf3 {[%clk 0:02:56]}  Nf6 {[%clk 0:02:57]} 2. c4 {[%clk 0:02:55]}  g6 {[%clk 0:02:53]} 3. Nc3 {[%clk 0:02:51]}  d5 {[%clk 0:02:53]} 4. cxd5 {[%clk 0:02:51]}  Nxd5 {[%clk 0:02:54]} 5. g3 {[%clk 0:02:48]}  Bg7 {[%clk 0:02:53]} 6. Bg2 {[%clk 0:02:48]}  O-O {[%clk 0:02:52]} 7. O-O {[%clk 0:02:47]}  c5 {[%clk 0:02:51]} 8. Qc2 {[%clk 0:02:36]}  Nc6 {[%clk 0:02:42]} 9. a3 {[%clk 0:02:27]}  c4 {[%clk 0:02:30]} 10. Rd1 {[%clk 0:01:55]}  Nxc3 {[%clk 0:02:16]} 11. bxc3 {[%clk 0:01:46]}  Bf5 {[%clk 0:02:12]} 12. Qa2 {[%clk 0:01:38]}  Rc8 {[%clk 0:02:04]} 13. Bb2 {[%clk 0:01:27]}  Na5 {[%clk 0:01:55]} 14. Nd4 {[%clk 0:01:19]}  Bxd4 {[%clk 0:01:40]} 15. cxd4 {[%clk 0:01:20]}  Nb3 {[%clk 0:01:41]} 16. e4 {[%clk 0:01:19]}  Bg4 {[%clk 0:01:35]} 17. f3 {[%clk 0:01:16]}  Nxa1 {[%clk 0:01:04]} 18. Bxa1 {[%clk 0:01:14]}  Bd7 {[%clk 0:01:01]} 19. Rb1 {[%clk 0:00:56]}  b5 {[%clk 0:00:59]} 20. Bc3 {[%clk 0:00:49]}  a5 {[%clk 0:00:58]} 21. f4 {[%clk 0:00:37]}  Rb8 {[%clk 0:00:53]} 22. h4 {[%clk 0:00:16]}  Bg4 {[%clk 0:00:52]} 23. f5 {[%clk 0:00:11]}  gxf5 {[%clk 0:00:49]} 24. d3 {[%clk 0:00:07]}  cxd3 {[%clk 0:00:45]} 25. Qd2 {[%clk 0:00:07]}  b4 {[%clk 0:00:40]} 26. axb4 {[%clk 0:00:04]}  axb4 {[%clk 0:00:41]} 27. Ba1 {[%clk 0:00:05]}  Qc7 {[%clk 0:00:26]} 28. h5 {[%clk 0:00:04]}  Qxg3 {[%clk 0:00:18]} 29. Qg5+ {[%clk 0:00:03]}  Kh8 {[%clk 0:00:19]} 30. h6 {[%clk 0:00:04]}  Rg8 {[%clk 0:00:18]} 31. d5+ {[%clk 0:00:04]}  f6 {[%clk 0:00:15]} 32. Bxf6+ {[%clk 0:00:04]}  exf6 {[%clk 0:00:15]} 33. Qxf6+ {[%clk 0:00:05]}  Rg7 {[%clk 0:00:14]} 34. Qxg7# {[%clk 0:00:05]} 1-0


[Site "https://www.chess.com"]